Cogmind - Beta 10.2 @@@ ROGUE MODE // 2021.08.25 @ 15:38:32 Player: dan Result: Destroyed by Y-72 Warden with Railgun Performance ------------- Evolutions (8) 4000 Regions Visited (24) 4800 Robots Destroyed (167) 835 Value Destroyed (7829) 7829 Prototype IDs (46) 920 Alien Tech Used (1) 200 Bonus (4502) 4502 TOTAL SCORE: 23086 Bonus ------- Triggered Max Security 1000 High Alert Combat Kills 872 Follower Combat Kills 1888 Network Hubs Disabled 200 Aligned with FarCom 300 Met Imprinter 300 Built Enhanced Grunts 300 Scanned by Researcher 500 Friendly Fire -858 Cogmind --------- Core Integrity 0/1450 Matter 234/300 Energy 96/100 System Corruption 17% Temperature Cool (0) Movement Core (50) Location -2/Quarantine Parts ------- > --- POWER (2) -------- (None) > --- PROPULSION (4) --- (None) > --- UTILITY (15) ----- (None) > --- WEAPON (2) ------- (None) > --- INVENTORY (4) ---- Quantum Reactor Experimental ECM Suite HERF Cannon Peak State ------------ > --- POWER ------------ Light Antimatter Reactor Light Particle Reactor > --- PROPULSION ------- Improved Heavy Treads Armored Heavy Treads > --- UTILITY ---------- Advanced Heat Sink High-capacity Storage Unit High-capacity Storage Unit Enhanced Optical Array Advanced Terrain Scan Processor Experimental Targeting Computer Experimental Targeting Computer Experimental Melee Analysis Suite Improved Power Shielding Centrium Medium Armor Plating Centrium Medium Armor Plating Improved Hacking Suite Experimental System Shield > --- WEAPON ----------- Longsword +1 Enhanced Force Lance > --- INVENTORY -------- Particle Reactor Light Particle Reactor Heavy Treads Advanced Heavy Treads High-capacity Battery High-capacity Matter Pod Advanced Targeting Computer Advanced Melee Analysis Suite Improved Weapon Shielding Corruption Screen Heavy Phase Cannon KE Penetrator KE Penetrator KE Penetrator Enhanced Gauss Cannon Gamma Bomb Array Micro-nuke Launcher Micro-nuke Launcher [Rating: 141] Favorites ----------- Power Improved Deuterium Engine Engine Improved Deuterium Engine Power Core Light Neutrino Core Reactor Light Antimatter Reactor Propulsion Light Treads Treads Light Treads Leg Aluminum Leg Wheel Armored Huge Wheel Hover Unit Improved Antigrav System Flight Unit Field Propulsion Array Utility High-capacity Storage Unit Device Advanced Heat Sink Storage High-capacity Storage Unit Processor Experimental Targeting Computer Hackware Experimental System Shield Protection Centrium Medium Armor Plating Artifact Phase Redirector Weapon Gauss Rifle Energy Gun Shock Rifle Energy Cannon Heavy Phase Cannon Ballistic Gun Gauss Rifle Ballistic Cannon Flak Cannon Launcher Advanced EMP Blaster Slashing Weapon Longsword +1 Piercing Weapon Enhanced Force Lance Build | -11 -10 -10 -10 -9 -8 -8 -7 -7 -7 -7 -6 -6 -5 -5 -5 -5 -5 -4 -4 -4 -3 -3 -2 -2 ------- Run | Scr Mat Min Exi Min Mat Sto Fac Low Low Zio Pro Fac Fac Ext Cet Arc Hub Fac Was Fac Res Arm Res Qua Slots Evolved 16 | . . . . . 4 . 2 . . . . 2 2 . . . . 2 . . 2 . 2 . Power 1 | . . . . . . . . . . . . . . . . . . 1 . . . . . . Propulsion 2 | . . . . . 2 . . . . . . . . . . . . . . . . . . . Utility 13 | . . . . . 2 . 2 . . . . 2 2 . . . . 1 . . 2 . 2 . Weapon . | . . . . . . . . . . . . . . . . . . . . . . . . . Parts Attached 248 | 6 10 1 2 1 23 17 12 . 9 6 6 7 17 18 4 1 7 3 3 6 9 54 11 15 Power 25 | 1 1 . . . . 1 1 . 1 . . . 2 . 1 . . 1 . 1 1 9 2 3 Engine 6 | 1 1 . . . . 1 1 . 1 . . . 1 . . . . . . . . . . . Core 5 | . . . . . . . . . . . . . 1 . . . . 1 . . . 3 . . Reactor 14 | . . . . . . . . . . . . . . . 1 . . . . 1 1 6 2 3 Propulsion 57 | 2 2 1 . . 12 6 2 . 2 . 1 . 6 2 1 . . . 1 . 1 16 . 2 Treads 36 | . . . . . 8 5 1 . 2 . 1 . 6 2 1 . . . 1 . 1 8 . . Leg 9 | 2 2 1 . . 4 . . . . . . . . . . . . . . . . . . . Wheel 1 | . . . . . . . 1 . . . . . . . . . . . . . . . . . Hover 9 | . . . . . . 1 . . . . . . . . . . . . . . . 8 . . Flight 2 | . . . . . . . . . . . . . . . . . . . . . . . . 2 Utility 85 | 1 4 . 1 . 3 . 4 . 1 5 2 4 4 9 1 . 5 2 2 3 5 15 7 7 Device 25 | . 1 . . . . . . . . . . . 1 4 . . 1 1 . 2 1 7 3 4 Storage 11 | 1 2 . 1 . 2 . 2 . . . . . . . . . . . 2 . . 1 . . Processor 17 | . 1 . . . 1 . . . . 4 . 2 1 . . . 1 . . . 1 4 1 1 Hackware 6 | . . . . . . . . . . . . . . 1 . . . . . 1 . . 3 1 Protection 25 | . . . . . . . 2 . 1 1 2 2 2 4 1 . 3 1 . . 3 3 . . Artifact 1 | . . . . . . . . . . . . . . . . . . . . . . . . 1 Weapon 81 | 2 3 . 1 1 8 10 5 . 5 1 3 3 5 7 1 1 2 . . 2 2 14 2 3 Energy Gun 9 | . . . . . 2 3 1 . . . . . . . . . . . . . . 1 1 1 Energy Cannon 9 | . . . . . . 1 1 . . . . 1 1 2 . . 1 . . . 1 1 . . Ballistic Gun 32 | 2 2 . 1 . 2 4 1 . 2 . . 2 3 4 1 1 1 . . 2 1 3 . . Ballistic Cannon 2 | . . . . . 2 . . . . . . . . . . . . . . . . . . . Launcher 14 | . 1 . . 1 1 2 . . 2 1 1 . . . . . . . . . . 4 . 1 Special Weapon . | . . . . . . . . . . . . . . . . . . . . . . . . . Impact Weapon . | . . . . . . . . . . . . . . . . . . . . . . . . . Slashing Weapon 12 | . . . . . 1 . 2 . 1 . 2 . 1 1 . . . . . . . 3 1 . Piercing Weapon 3 | . . . . . . . . . . . . . . . . . . . . . . 2 . 1 Special Melee Weapon . | . . . . . . . . . . . . . . . . . . . . . . . . . Unidentified Prototypes 22 | . . . . . . 6 . . . 4 . . . 1 3 . . . . . . 3 1 4 Parts Lost 67 | . . . . . 1 . . . 3 . . . 2 . . . 4 . 2 . 1 31 13 10 Power 10 | . . . . . . . . . 1 . . . . . . . 1 . 1 . . 5 1 1 Propulsion 15 | . . . . . . . . . 1 . . . 2 . . . . . 1 . . 5 4 2 Utility 34 | . . . . . . . . . 1 . . . . . . . 2 . . . 1 18 7 5 Weapon 8 | . . . . . 1 . . . . . . . . . . . 1 . . . . 3 1 2 Highest Loss Streak 12 | . . . . . 1 . . . 2 . . . 2 . . . 4 . 2 . 1 10 12 10 Average Slot Usage (%) 89 | . 99 100 100 100 98 99 94 92 88 84 91 93 97 97 88 88 86 73 62 73 88 74 71 41 Engine 5 | . 14 14 14 14 9 9 7 7 6 7 7 6 4 5 1 . . . . . . . . . Reactor 1 | . . . . . . . . . . . . . . . 3 5 4 . . 2 8 6 7 4 Treads 14 | . . . . . 27 36 27 15 15 15 15 13 17 20 11 11 11 10 8 10 9 6 . . Leg 4 | . 28 28 28 28 7 . . . . . . . . . . . . . . . . . . . Wheel 1 | . . . . . . . 1 7 7 7 7 6 2 . . . . . . . . . . . Device 2 | . . . . . . . . . . . . . 1 4 . . 4 5 3 7 4 5 15 3 Storage 17 | . 14 14 14 14 22 27 23 23 23 23 23 20 17 17 17 17 17 15 15 15 11 6 . . Processor 15 | . 13 14 14 14 13 9 7 7 7 8 15 20 23 23 23 23 23 21 21 21 22 20 18 15 Hackware 2 | . . . . . . . . . . . . . . 4 5 5 5 5 5 7 9 4 6 12 Protection 5 | . . . . . . . 10 15 11 6 6 12 14 6 11 11 5 5 2 . 10 5 . . Ballistic Gun 9 | . 28 28 28 14 2 11 9 15 14 7 7 8 7 10 11 11 9 5 3 7 8 1 . . Launcher 1 | . . . . 14 2 . . . . 6 1 . . . . . . . . . . . . . Slashing Weapon 1 | . . . . . 2 . 2 . . . 5 . . . . . . . . . . 2 3 . Naked Turns 2 | . . . . . . . . . . . . . . . . . . . . . . . . 2 Heaviest Build 142 | 13 40 24 39 41 95 98 121 121 129 131 118 121 131 130 141 142 142 115 115 94 119 125 47 56 Greatest Support 155 | 20 20 20 20 20 88 88 88 28 28 28 28 28 112 140 150 150 150 150 155 155 155 150 77 46 Greatest Overweight (x) 4 | . 1 1 1 2 2 1 4 4 4 4 4 4 4 1 1 . . . 1 1 1 1 2 2 Average Overweight (x) 1 | . . 1 1 2 . 1 1 4 4 4 4 4 2 . . . . . . . . . . . Largest Inventory Capacity 28 | 6 12 10 12 12 26 26 28 28 28 28 28 28 28 28 28 28 28 28 28 20 20 20 4 4 Average Capacity 21 | 5 8 10 10 12 21 26 26 28 28 28 28 28 28 28 28 28 28 28 25 20 20 13 4 4 Most Carried 28 | 6 10 10 12 12 26 26 28 28 28 28 28 28 28 28 28 28 28 25 24 20 20 20 4 4 Average Carried 21 | 2 6 10 10 12 19 25 25 28 27 27 28 27 27 27 27 28 27 23 22 18 18 13 3 3 Final Capacity 28 | 6 10 10 12 12 26 26 28 28 28 28 28 28 28 28 28 28 28 28 20 20 20 4 4 4 Final Carried 28 | 6 10 10 12 12 26 26 28 28 28 28 28 28 28 28 28 28 26 23 20 18 20 4 4 3 Class Distribution -------------------- 43% | Hauler-Mutant 18% | Mutant 11% | Hacker-Mutant 8% | Scavenger-Mutant 5% | Commander-Mutant 4% | Hauler-Skirmisher 3% | Hacker-Skirmisher 3% | Commander-Skirmisher Dominant Class ---------------- Mutant | -10/Materials Mutant | -10/Mines Mutant | -10/Exiles Mutant | -9/Mines Mutant | -8/Materials Hauler-Mutant | -8/Storage Hauler-Mutant | -7/Factory Hauler-Mutant | -7/Lower Caves Hauler-Mutant | -7/Lower Caves Hauler-Mutant | -7/Zion Hauler-Mutant | -6/Proximity Caves Hauler-Mutant | -6/Factory Hauler-Mutant | -5/Factory Hauler-Skirmisher | -5/Extension Scavenger-Mutant | -5/Cetus Scavenger-Mutant | -5/Archives Commander-Skirmisher | -5/Hub_04(d) Hauler-Mutant | -4/Factory Hauler-Mutant | -4/Waste Hacker-Skirmisher | -4/Factory Hacker-Mutant | -3/Research Hacker-Mutant | -3/Armory Scavenger-Mutant | -2/Research Hacker-Mutant | -2/Quarantine Resources | -11 -10 -10 -10 -9 -8 -8 -7 -7 -7 -7 -6 -6 -5 -5 -5 -5 -5 -4 -4 -4 -3 -3 -2 -2 ----------- Run | Scr Mat Min Exi Min Mat Sto Fac Low Low Zio Pro Fac Fac Ext Cet Arc Hub Fac Was Fac Res Arm Res Qua Matter Collected 4367 | 248 299 95 . 95 484 349 224 48 154 10 145 . 324 225 160 66 20 . . 98 315 864 61 83 Remotely . | . . . . . . . . . . . . . . . . . . . . . . . . . Salvage Created 8078 | . 323 53 . 32 752 454 350 153 460 . 583 . 392 329 129 40 545 . . . 346 2678 268 191 Parts 472 | . 30 3 . 7 40 35 28 8 18 . 19 . 16 16 3 4 27 . . . 23 173 11 11 Haulers Intercepted 5 | . . . . . 2 1 . . . . . . . . . . 1 . . . . . 1 . Recyclers Shooed . | . . . . . . . . . . . . . . . . . . . . . . . . . Parts Field Recycled . | . . . . . . . . . . . . . . . . . . . . . . . . . Retrieved Matter . | . . . . . . . . . . . . . . . . . . . . . . . . . Parts Self-Destructed 23 | . . . . . . . . 8 6 . 9 . . . . . . . . . . . . . Prevented 14 | . . . . . . . . . 7 . 7 . . . . . . . . . . . . . Kills | -11 -10 -10 -10 -9 -8 -8 -7 -7 -7 -7 -6 -6 -5 -5 -5 -5 -5 -4 -4 -4 -3 -3 -2 -2 ------- Run | Scr Mat Min Exi Min Mat Sto Fac Low Low Zio Pro Fac Fac Ext Cet Arc Hub Fac Was Fac Res Arm Res Qua Combat Hostiles Destroyed 128 | . 10 1 . 3 11 8 6 3 8 . 11 . 5 3 1 . 1 . . . 4 48 2 3 Melee 43 | . . . . . 2 . 1 . 1 . 4 . 2 1 . . . . . . . 30 2 . Guns 37 | . 7 1 . . 4 3 3 3 2 . . . 3 2 1 . 1 . . . 4 3 . . Cannons 13 | . . . . . 4 2 2 . . . . . . . . . . . . . . 5 . . AOE 34 | . 3 . . 3 1 3 . . 4 . 7 . . . . . . . . . . 10 . 3 Classes Destroyed 17 | . 4 . . . 4 1 1 . 1 . 1 . . . . . . . . . . 4 . 1 Worker 7 | . . . . . 1 . . . . . . . 1 . . . 5 . . . . . . . Builder 3 | . 1 . . . . . 1 . . . . . . . . . 1 . . . . . . . Hauler 5 | . . . . . 2 1 . . . . . . . . . . 1 . . . . . 1 . Recycler 4 | . . . . . 1 2 . . . . . . . 1 . . . . . . . . . . Mechanic 1 | . . . . . . . . . . . . . . . . . . . . . . 1 . . Operator 5 | . . . . . . 1 1 . . . . . . 1 . 1 . . . . . 1 . . Watcher 11 | . 1 . . . 2 1 . . . . . . . . . . 2 . . . 2 3 . . Swarmer 17 | . 3 . . 3 . 3 . 1 . . 4 . . . . . . . . . . 3 . . Saboteur 5 | . . . . . . . . . . . . . . . . . . . . . . 5 . . Grunt 51 | . 7 1 . . 7 2 3 1 5 . 6 . 2 2 1 . . . . . . 12 . 2 Brawler 3 | . . . . . . . . . . . 1 . . . . . . . . . . 2 . . Duelist 8 | . . . . . . . . . 2 . . . . . . . . . . . . 6 . . Protector 1 | . . . . . . . . . . . . . . . . . . . . . . . . 1 Sentry 17 | . . . . . 4 3 2 1 1 . . . 3 1 . . 1 . . . . . 1 . Demolisher 1 | . . . . . . . . . . . . . . . . . . . . . . 1 . . Specialist 3 | . . . . . . . . . . . . . . . . . . . . . . 3 . . Programmer 22 | . . . . . . . 1 . . . . . . . . . . . . . 4 16 1 . Enhanced Grunt 2 | . . . . . . . . . . . . . . . . . 2 . . . . . . . Thug 1 | . . . . . . . . . . . . . . . 1 . . . . . . . . . Best Kill Streak 10 | . 5 1 . 3 3 7 4 3 4 . 4 . 3 2 1 1 10 . . . 4 7 2 3 Combat Bots Only 7 | . 4 1 . 3 3 5 2 3 4 . 4 . 2 2 1 . 1 . . . 2 7 2 3 Max Kills in Single Turn 9 | . 2 1 . 3 2 2 1 1 2 . 3 . 1 1 1 1 9 . . . 1 3 1 3 Gunslinging . | . . . . . . . . . . . . . . . . . . . . . . . . . Exploded 3 | . 2 . . 3 1 2 . . 2 . 3 . . . . . . . . . . 2 . 3 Melee 2 | . . . . . 1 . 1 . 1 . 1 . 1 1 . . . . . . . 2 1 . Uniques/NPCs Destroyed . | . . . . . . . . . . . . . . . . . . . . . . . . . Combat | -11 -10 -10 -10 -9 -8 -8 -7 -7 -7 -7 -6 -6 -5 -5 -5 -5 -5 -4 -4 -4 -3 -3 -2 -2 -------- Run | Scr Mat Min Exi Min Mat Sto Fac Low Low Zio Pro Fac Fac Ext Cet Arc Hub Fac Was Fac Res Arm Res Qua Damage Taken 18949 | . 425 17 . 55 450 129 192 188 973 . 478 . 689 162 58 128 2623 . 226 . 534 8782 1217 1623 Core 3080 | . 78 . . 9 49 39 . 28 79 . . . 65 . . . 216 . . . 22 1031 661 803 Absorbed by Shields 214 | . . . . . . . . . . . . . . 95 9 . . . . . . . 110 . Reduced by Siege Mode 34 | . . . . . . . . . . . . . . . . . . . . . 24 10 . . Core Remaining (%) 77 | 100 . . . 65 . 84 . . . . 84 100 . . . . 71 . . 100 . 19 . . Volleys Fired 281 | . 30 3 . 1 26 28 15 6 13 . 7 3 22 22 8 7 4 . . . 23 46 . 17 Largest 2 | . 2 2 . 1 2 2 2 2 2 . 1 1 2 2 2 2 2 . . . 2 2 . 1 Hottest 153 | . 40 40 . 30 94 93 118 56 56 . 36 90 98 131 68 68 98 . . . 131 153 . 94 Shots Fired 451 | . 58 6 . 1 50 47 29 12 16 . 7 3 32 31 16 14 6 . . . 44 60 . 19 Gun 327 | . 56 6 . . 29 34 25 12 6 . . . 21 18 16 14 4 . . . 38 30 . 18 Cannon 84 | . . . . . 19 9 4 . . . . 3 11 13 . . 2 . . . 6 17 . . Launcher 40 | . 2 . . 1 2 4 . . 10 . 7 . . . . . . . . . . 13 . 1 Special . | . . . . . . . . . . . . . . . . . . . . . . . . . Kinetic 310 | . 56 6 . . 34 37 20 12 6 . . . 21 18 16 14 4 . . . 38 28 . . Thermal 84 | . . . . . . 6 9 . . . . 3 11 12 . . 2 . . . 6 17 . 18 Explosive 21 | . 2 . . 1 2 4 . . . . . . . . . . . . . . . 11 . 1 Electromagnetic 36 | . . . . . 14 . . . 10 . 7 . . 1 . . . . . . . 4 . . Robot Hit Streak 40 | . 13 10 . . 18 8 18 12 16 . 8 . 28 33 21 15 19 . . . 40 16 . 7 Robot Miss Streak 5 | . 1 . . 1 5 4 3 . 2 . . . . 1 1 . . . . . 2 2 . 1 Penetration Max 1 | . . . . . 1 1 1 . . . . . 1 1 1 1 . . . . 1 . . . Secondary Targets 3 | . 1 . . . . . . . . . . . . . . . . . . . 1 1 . . Max Gunslinging Chain 1 | . 1 . . . . . . . . . . . . . . . . . . . 1 1 . . Capacitor 18 | . . . . . . . . . . . . . . . . . . . . . . . . 18 Shots Hit Robots 500 | . 45 5 . . 54 28 25 11 17 . 11 . 37 18 15 13 4 . . . 36 152 17 12 Core Hits 328 | . 22 2 . 3 40 23 11 5 13 . 16 . 13 12 10 7 19 . . . 12 97 7 16 Critical Hits 37 | . . 2 . . . 2 . . . . . . . 2 3 . 1 . . . 5 19 3 . Critical Kills 11 | . . 1 . . . 1 . . . . . . . . 1 . 1 . . . . 7 . . Critical Parts Destroyed 24 | . . 1 . . . 1 . . . . . . . 2 2 . . . . . 5 12 1 . Melee Attacks 200 | . . . . . 13 . 3 . 6 . 8 . 17 5 . . . . . . . 131 17 . Impact . | . . . . . . . . . . . . . . . . . . . . . . . . . Slashing 106 | . . . . . 13 . 3 . 6 . 8 . 17 5 . . . . . . . 40 14 . Piercing 94 | . . . . . . . . . . . . . . . . . . . . . . 91 3 . Sneak Attacks 5 | . . . . . 1 . 1 . . . . . . . . . . . . . . 2 1 . Combat Hostiles . | . . . . . . . . . . . . . . . . . . . . . . . . . Follow-up Attacks 22 | . . . . . . . . . . . . . . . . . . . . . . 21 1 . Damage Inflicted 22827 | . 739 49 . 126 1743 771 906 239 1031 . 1081 . 1307 665 475 376 1301 . . . 1093 8862 951 1112 Guns 6127 | . 539 49 . . 607 435 533 239 129 . . . 463 424 475 376 72 . . . 888 623 . 275 Cannons 1312 | . . . . . 353 165 110 . . . . . . . . . 34 . . . 205 445 . . Explosions 6394 | . 200 . . 126 130 167 . . 685 . 715 . . . . . 1186 . . . . 2351 . 834 Melee 8942 | . . . . . 653 . 263 . 217 . 366 . 844 241 . . . . . . . 5417 941 . Ramming 52 | . . . . . . 4 . . . . . . . . . . 9 . . . . 26 10 3 Kinetic 5881 | . 539 49 . . 719 549 432 239 129 . . . 463 424 475 376 72 . . . 888 527 . . Thermal 1451 | . . . . . . 51 211 . 125 . 105 . . . . . 34 . . . 205 445 . 275 Explosive 3761 | . 200 . . 126 130 167 . . . . . . . . . . . . . . . 2304 . 834 Electromagnetic 2740 | . . . . . 241 . . . 560 . 610 . . . . . 1186 . . . . 143 . . Impact . | . . . . . . . . . . . . . . . . . . . . . . . . . Slashing 4951 | . . . . . 653 . 263 . 217 . 366 . 844 241 . . . . . . . 1551 816 . Piercing 3991 | . . . . . . . . . . . . . . . . . . . . . . 3866 125 . Highest Corruption 62 | . . . . . . . . . 1 1 1 . . 3 3 3 20 . 10 10 3 62 5 17 Average Corruption 11 | . . . . . . . . . 1 1 1 . . 2 3 3 4 . 5 10 2 31 1 6 Corruption Purged . | . . . . . . . . . . . . . . . . . . . . . . . . . Effects 208 | . . . . . . . . . 2 . 2 . . 13 2 1 4 . 1 6 3 165 . 9 Message Errors 28 | . . . . . . . . . 1 . 1 . . 4 1 . 2 . . . 1 17 . 1 Matter Fused 22 | . . . . . . . . . . . . . . 4 . . 1 . . 1 1 14 . 1 Heat Flow Errors 11 | . . . . . . . . . . . . . . 1 1 1 . . . . . 8 . . Energy Discharges 13 | . . . . . . . . . 1 . 1 . . 2 . . . . . 3 . 6 . . Data Loss (minor) 9 | . . . . . . . . . . . . . . 1 . . 1 . . . 1 4 . 2 Data Loss (major) 11 | . . . . . . . . . . . . . . . . . . . 1 2 . 8 . . Misfires 2 | . . . . . . . . . . . . . . . . . . . . . . . . 2 Alerts 3 | . . . . . . . . . . . . . . . . . . . . . . 3 . . Misdirections 36 | . . . . . . . . . . . . . . . . . . . . . . 35 . 1 Targeting Errors 70 | . . . . . . . . . . . . . . 1 . . . . . . . 67 . 2 Weapon Failures 3 | . . . . . . . . . . . . . . . . . . . . . . 3 . . Overload Shots . | . . . . . . . . . . . . . . . . . . . . . . . . . Overflow Damage 640 | . . . . . 99 7 8 . 49 . 15 . 126 . . . 68 . . . . 213 17 38 Projectiles 15 | . . . . . 7 . 8 . . . . . . . . . . . . . . . . . Explosions 193 | . . . . . . 7 . . 30 . . . . . . . 68 . . . . 50 . 38 Melee 432 | . . . . . 92 . . . 19 . 15 . 126 . . . . . . . . 163 17 . Knockbacks 23 | . . . . . 13 9 . . . . . . . . . . 1 . . . . . . . Impact 1 | . . . . . . . . . . . . . . . . . 1 . . . . . . . Kinetic 20 | . . . . . 12 8 . . . . . . . . . . . . . . . . . . Secondary 2 | . . . . . 1 1 . . . . . . . . . . . . . . . . . . Self-Inflicted Damage 885 | . 33 . . 40 18 15 . . 80 . 126 . . . . . 92 . . . . 382 4 95 Shots 21 | . 2 . . 1 1 1 . . 3 . 4 . . . . . 1 . . . . 7 . 1 Rammed 9 | . . . . . . 1 . . . . . . . . . . 1 . . . . 3 3 1 Targets Rammed 9 | . . . . . . 1 . . . . . . . . . . 1 . . . . 3 3 1 Kicked . | . . . . . . . . . . . . . . . . . . . . . . . . . Crushed . | . . . . . . . . . . . . . . . . . . . . . . . . . Highest Temperature 550 | . 5 9 . . 90 28 252 37 24 222 18 120 166 288 102 125 42 . . . 204 261 . 550 Average Temperature 81 | . 2 9 . . 29 8 112 21 13 114 12 65 46 93 40 51 28 . . . 96 111 . 276 Received Heat Transfer 1706 | . 189 9 . . 198 54 45 63 189 . 102 . 153 22 13 9 36 . . . . 252 165 207 Effects 5 | . . . . . . . . . . . . . . . . . . . . . . 1 . 4 Shutdowns 2 | . . . . . . . . . . . . . . . . . . . . . . . . 2 Interference 2 | . . . . . . . . . . . . . . . . . . . . . . 1 . 1 Matter Decay 1 | . . . . . . . . . . . . . . . . . . . . . . . . 1 Siege Activations 9 | . . . . . . . . . . . . . . . 2 1 1 . . . 2 3 . . Total Turns 100 | . . . . . . . . . . . . . . . 33 2 4 . . . 32 29 . . Longest Duration 26 | . . . . . . . . . . . . . . . 26 2 4 . . . 26 14 . . Robots Corrupted 4 | . . . . . . . . . 1 . . . . . . . 2 . . . . 1 . . Combat Hostiles 1 | . . . . . . . . . 1 . . . . . . . . . . . . . . . Parts Fried 17 | . . . . . . . . . 1 . 5 . . 1 . . 8 . . . . 2 . . Impact Corruptions . | . . . . . . . . . . . . . . . . . . . . . . . . . Robots Melted . | . . . . . . . . . . . . . . . . . . . . . . . . . Combat Hostiles . | . . . . . . . . . . . . . . . . . . . . . . . . . Parts Melted 3 | . . . . . . . . . . . . . . . . . . . . . . 3 . . Heat Transferred 1421 | . . . . . . 74 296 . 150 . 50 . . . . . 37 . . . 185 333 . 296 Parts Sabotaged 7 | . . . . . . . . . . . . . . . . . . . . . . 2 . 5 Parts Stolen . | . . . . . . . . . . . . . . . . . . . . . . . . . Parts Stripped . | . . . . . . . . . . . . . . . . . . . . . . . . . Power Chain Reactions 4 | . . . . . . . . . 3 . 1 . . . . . . . . . . . . . Missiles Intercepted . | . . . . . . . . . . . . . . . . . . . . . . . . . Alert | -11 -10 -10 -10 -9 -8 -8 -7 -7 -7 -7 -6 -6 -5 -5 -5 -5 -5 -4 -4 -4 -3 -3 -2 -2 ------- Run | Scr Mat Min Exi Min Mat Sto Fac Low Low Zio Pro Fac Fac Ext Cet Arc Hub Fac Was Fac Res Arm Res Qua Peak Influence 1741 | . 300 137 . 70 144 329 480 . . . . 135 198 209 453 367 1059 506 177 95 136 762 668 1741 Initial 506 | . . 47 . . 23 50 147 . . . . 128 65 27 104 181 128 506 177 95 49 . 381 342 Average 205 | . 127 116 . 59 42 209 220 . . . . 131 66 93 167 296 345 506 160 95 62 453 468 1619 Maximum Alert Level 5 | . 1 . . . . 1 2 . . . . . . 1 2 1 3 2 . . . 3 2 5 Low Security (%) 68 | 100 81 100 . 100 100 40 35 . . . . 100 100 99 82 18 53 . 100 100 100 12 . . Level 1 16 | . 18 . . . . 59 63 . . . . . . . 1 81 29 . . . . 26 59 . Level 2 10 | . . . . . . . . . . . . . . . 16 . . 100 . . . 49 41 . Level 3 2 | . . . . . . . . . . . . . . . . . 16 . . . . 11 . . Level 4 . | . . . . . . . . . . . . . . . . . . . . . . . . . Level 5 . | . . . . . . . . . . . . . . . . . . . . . . . . . High Security . | . . . . . . . . . . . . . . . . . . . . . . . . . Max Security 1 | . . . . . . . . . . . . . . . . . . . . . . . . 99 Squads Dispatched 26 | . 1 . . . 1 2 3 . . . . . . . . . 3 . . . 1 7 1 7 Investigation 2 | . 1 . . . . . . . . . . . . . . . . . . . . . 1 . Extermination 6 | . . . . . . . 1 . . . . . . . . . . . . . 1 4 . . Reinforcement 10 | . . . . . 1 2 2 . . . . . . . . . 2 . . . . 2 . 1 Assault 8 | . . . . . . . . . . . . . . . . . 1 . . . . 1 . 6 Garrison . | . . . . . . . . . . . . . . . . . . . . . . . . . Intercept . | . . . . . . . . . . . . . . . . . . . . . . . . . Construction Impeded 2 | . . . . . . 1 . . . . . . . . . . 1 . . . . . . . Haulers Reinforced . | . . . . . . . . . . . . . . . . . . . . . . . . . Stealth | -11 -10 -10 -10 -9 -8 -8 -7 -7 -7 -7 -6 -6 -5 -5 -5 -5 -5 -4 -4 -4 -3 -3 -2 -2 --------- Run | Scr Mat Min Exi Min Mat Sto Fac Low Low Zio Pro Fac Fac Ext Cet Arc Hub Fac Was Fac Res Arm Res Qua Distress Signals 16 | . 2 . . . 1 1 . . . . . . . 3 1 . 3 . . . . 5 . . Communications Jammed . | . . . . . . . . . . . . . . . . . . . . . . . . . Distress Signals . | . . . . . . . . . . . . . . . . . . . . . . . . . Times Spotted 303 | . 16 5 . 3 21 14 13 3 10 . 11 . 5 16 10 6 25 . 4 . 8 77 10 46 Peak Tracking Total 28 | . 6 2 . . 3 5 4 3 4 . 4 . 2 4 7 2 20 . 4 . 2 10 7 28 Tactical Retreats 15 | . . 3 . . 1 . 1 . 1 . 2 . . . . . 1 . . . . 5 1 . Traps | -11 -10 -10 -10 -9 -8 -8 -7 -7 -7 -7 -6 -6 -5 -5 -5 -5 -5 -4 -4 -4 -3 -3 -2 -2 ------- Run | Scr Mat Min Exi Min Mat Sto Fac Low Low Zio Pro Fac Fac Ext Cet Arc Hub Fac Was Fac Res Arm Res Qua Traps Triggered 13 | . 1 . . . . 2 . . . . . . . 8 . . . 1 . . . . 1 . Indirectly . | . . . . . . . . . . . . . . . . . . . . . . . . . Trap Hack Attempts . | . . . . . . . . . . . . . . . . . . . . . . . . . Triggered . | . . . . . . . . . . . . . . . . . . . . . . . . . Disarmed . | . . . . . . . . . . . . . . . . . . . . . . . . . Reprogrammed . | . . . . . . . . . . . . . . . . . . . . . . . . . Reused . | . . . . . . . . . . . . . . . . . . . . . . . . . Traps Extracted . | . . . . . . . . . . . . . . . . . . . . . . . . . Installed . | . . . . . . . . . . . . . . . . . . . . . . . . . Triggered . | . . . . . . . . . . . . . . . . . . . . . . . . . Machines | -11 -10 -10 -10 -9 -8 -8 -7 -7 -7 -7 -6 -6 -5 -5 -5 -5 -5 -4 -4 -4 -3 -3 -2 -2 ---------- Run | Scr Mat Min Exi Min Mat Sto Fac Low Low Zio Pro Fac Fac Ext Cet Arc Hub Fac Was Fac Res Arm Res Qua Machines Disabled 30 | . . . . . . 2 6 . . . . . . 2 1 2 12 . . . . 4 . 1 Max in Single Turn 12 | . . . . . . 1 5 . . . . . . 1 1 . 12 . . . . 1 . 1 Garrison Access 4 | . . . . . . . . . . . . . . . . . 1 . . 1 1 . 1 . Network Hub 1 | . . . . . . . . . . . . . . . . . 1 . . . . . . . Machines Sabotaged . | . . . . . . . . . . . . . . . . . . . . . . . . . Garrisons Compromised . | . . . . . . . . . . . . . . . . . . . . . . . . . Overloaded Fab Kills . | . . . . . . . . . . . . . . . . . . . . . . . . . Fab Network Shutdowns . | . . . . . . . . . . . . . . . . . . . . . . . . . Hacking | -11 -10 -10 -10 -9 -8 -8 -7 -7 -7 -7 -6 -6 -5 -5 -5 -5 -5 -4 -4 -4 -3 -3 -2 -2 --------- Run | Scr Mat Min Exi Min Mat Sto Fac Low Low Zio Pro Fac Fac Ext Cet Arc Hub Fac Was Fac Res Arm Res Qua Machines Accessed 50 | . 5 1 2 . 4 8 . . 1 . . 1 5 9 1 . 2 . . 1 3 6 1 . Terminals 41 | . 5 . . . 3 8 . . . . . 1 5 9 1 . 2 . . . 1 6 . . Fabricators . | . . . . . . . . . . . . . . . . . . . . . . . . . Repair Stations . | . . . . . . . . . . . . . . . . . . . . . . . . . Recycling Units . | . . . . . . . . . . . . . . . . . . . . . . . . . Scanalyzers 2 | . . . . . 1 . . . . . . . . . . . . . . . 1 . . . Garrison Access 3 | . . . . . . . . . . . . . . . . . . . . 1 1 . 1 . Total Hacks 148 | . 16 1 2 . 15 26 . . 1 . . 7 13 26 2 . 8 . . 1 7 19 4 . Successful 71 | . 10 1 2 . 9 16 . . 1 . . 2 8 10 . . 1 . . 1 3 6 1 . Failed 77 | . 6 . . . 6 10 . . . . . 5 5 16 2 . 7 . . . 4 13 3 . Catastrophic 10 | . 1 . . . 1 . . . . . . . . 2 1 . . . . . 2 2 1 . Database Lockouts . | . . . . . . . . . . . . . . . . . . . . . . . . . Manual 53 | . 12 . 1 . 5 5 . . . . . 3 9 9 1 . 1 . . . . 6 1 . Terminals 133 | . 16 . . . 13 26 . . . . . 7 13 26 2 . 8 . . . 3 19 . . Fabricators . | . . . . . . . . . . . . . . . . . . . . . . . . . Repair Stations . | . . . . . . . . . . . . . . . . . . . . . . . . . Recycling Units . | . . . . . . . . . . . . . . . . . . . . . . . . . Scanalyzers 4 | . . . . . 2 . . . . . . . . . . . . . . . 2 . . . Garrison Access 7 | . . . . . . . . . . . . . . . . . . . . 1 2 . 4 . Terminal Hacks 46 | . 3 1 2 . 5 14 . . 1 . . 1 5 7 . . 1 . . . 1 5 . . Record 2 | . . . 1 . . 1 . . . . . . . . . . . . . . . . . . Part Schematic 1 | . . . . . . 1 . . . . . . . . . . . . . . . . . . Robot Schematic 1 | . . . . . . 1 . . . . . . . . . . . . . . . . . . Prototype ID Bank 1 | . 1 . . . . . . . . . . . . . . . . . . . . . . . Open Door 12 | . . 1 . . . 3 . . 1 . . . 1 5 . . . . . . . 1 . . Branch Access Points 2 | . . . . . 1 . . . . . . . 1 . . . . . . . . . . . Emergency Access Points 2 | . . . . . 1 . . . . . . . . . . . . . . . . 1 . . Terminal Index 3 | . 1 . . . . . . . . . . . 1 . . . . . . . . 1 . . Scanalyzer Index 1 | . . . . . . 1 . . . . . . . . . . . . . . . . . . Alert Level 3 | . . . . . . 2 . . . . . . . 1 . . . . . . . . . . Unreport Threat 2 | . . . . . . . . . . . . . . 1 . . . . . . 1 . . . Locate Traps 7 | . . . . . 1 2 . . . . . 1 1 . . . . . . . . 2 . . Hauler Manifests 2 | . . . . . 1 1 . . . . . . . . . . . . . . . . . . Registered Components 1 | . . . . . . . . . . . . . 1 . . . . . . . . . . . Zone Layout 5 | . 1 . . . 1 2 . . . . . . . . . . 1 . . . . . . . EX-Prototype ID Bank 1 | . . . 1 . . . . . . . . . . . . . . . . . . . . . Fabricator Hacks . | . . . . . . . . . . . . . . . . . . . . . . . . . Repair Station Hacks . | . . . . . . . . . . . . . . . . . . . . . . . . . Recycling Unit Hacks . | . . . . . . . . . . . . . . . . . . . . . . . . . Scanalyzer 3 | . . . . . 2 . . . . . . . . . . . . . . . 1 . . . Insert Component 2 | . . . . . 1 . . . . . . . . . . . . . . . 1 . . . Analyze 1 | . . . . . 1 . . . . . . . . . . . . . . . . . . . Garrison Access Hacks 2 | . . . . . . . . . . . . . . . . . . . . 1 1 . . . Seal Access 2 | . . . . . . . . . . . . . . . . . . . . 1 1 . . . Unauthorized Hacks 20 | . 7 . . . 2 2 . . . . . 1 3 3 . . . . . . . 1 1 . Terminals 19 | . 7 . . . 2 2 . . . . . 1 3 3 . . . . . . . 1 . . Track 4 | . 3 . . . 1 . . . . . . . . . . . . . . . . . . . Assimilate 1 | . 1 . . . . . . . . . . . . . . . . . . . . . . . Botnet 8 | . 2 . . . . 1 . . . . . . 2 2 . . . . . . . 1 . . Operators 6 | . 1 . . . 1 1 . . . . . 1 1 1 . . . . . . . . . . Fabricators . | . . . . . . . . . . . . . . . . . . . . . . . . . Repair Stations . | . . . . . . . . . . . . . . . . . . . . . . . . . Recycling Units . | . . . . . . . . . . . . . . . . . . . . . . . . . Scanalyzers . | . . . . . . . . . . . . . . . . . . . . . . . . . Garrison Access 1 | . . . . . . . . . . . . . . . . . . . . . . . 1 . Jam 1 | . . . . . . . . . . . . . . . . . . . . . . . 1 . Data Cores Recovered . | . . . . . . . . . . . . . . . . . . . . . . . . . Used . | . . . . . . . . . . . . . . . . . . . . . . . . . Hacking Detections 38 | . 4 . . . 4 7 . . . . . 1 4 6 1 . 2 . . . 3 5 1 . Full Trace Events . | . . . . . . . . . . . . . . . . . . . . . . . . . Feedback Events . | . . . . . . . . . . . . . . . . . . . . . . . . . Feedback Blocked . | . . . . . . . . . . . . . . . . . . . . . . . . . Robot Schematics Acquired 1 | . . . . . . 1 . . . . . . . . . . . . . . . . . . Robots Built . | . . . . . . . . . . . . . . . . . . . . . . . . . Matter . | . . . . . . . . . . . . . . . . . . . . . . . . . Time . | . . . . . . . . . . . . . . . . . . . . . . . . . Total Robot Build Rating . | . . . . . . . . . . . . . . . . . . . . . . . . . Part Schematics Acquired 2 | . . . . . 1 1 . . . . . . . . . . . . . . . . . . Parts Built . | . . . . . . . . . . . . . . . . . . . . . . . . . Matter . | . . . . . . . . . . . . . . . . . . . . . . . . . Time . | . . . . . . . . . . . . . . . . . . . . . . . . . Total Part Build Rating . | . . . . . . . . . . . . . . . . . . . . . . . . . Parts Repaired . | . . . . . . . . . . . . . . . . . . . . . . . . . Time . | . . . . . . . . . . . . . . . . . . . . . . . . . Parts Recycled . | . . . . . . . . . . . . . . . . . . . . . . . . . Recycled Matter . | . . . . . . . . . . . . . . . . . . . . . . . . . Retrieved Matter . | . . . . . . . . . . . . . . . . . . . . . . . . . Retrieved Components . | . . . . . . . . . . . . . . . . . . . . . . . . . Parts Scanalyzed 2 | . . . . . 1 . . . . . . . . . . . . . . . 1 . . . Part Schematics Acquired 1 | . . . . . 1 . . . . . . . . . . . . . . . . . . . Parts Damaged . | . . . . . . . . . . . . . . . . . . . . . . . . . Bothacking | -11 -10 -10 -10 -9 -8 -8 -7 -7 -7 -7 -6 -6 -5 -5 -5 -5 -5 -4 -4 -4 -3 -3 -2 -2 ------------ Run | Scr Mat Min Exi Min Mat Sto Fac Low Low Zio Pro Fac Fac Ext Cet Arc Hub Fac Was Fac Res Arm Res Qua Used RIF Installer . | . . . . . . . . . . . . . . . . . . . . . . . . . Robots Hacked . | . . . . . . . . . . . . . . . . . . . . . . . . . Non-combat . | . . . . . . . . . . . . . . . . . . . . . . . . . Combat . | . . . . . . . . . . . . . . . . . . . . . . . . . Robot Hacks Applied . | . . . . . . . . . . . . . . . . . . . . . . . . . Relay Couplers Released 3 | . . . . . . . . . . . . . . . . . 3 . . . . . . . Machine Destruction 3 | . . . . . . . . . . . . . . . . . 3 . . . . . . . Robots Rewired 14 | . . . . . . . . . . . . . . 14 . . . . . . . . . . Allies Hacked . | . . . . . . . . . . . . . . . . . . . . . . . . . Hacks Repelled . | . . . . . . . . . . . . . . . . . . . . . . . . . Allies | -11 -10 -10 -10 -9 -8 -8 -7 -7 -7 -7 -6 -6 -5 -5 -5 -5 -5 -4 -4 -4 -3 -3 -2 -2 -------- Run | Scr Mat Min Exi Min Mat Sto Fac Low Low Zio Pro Fac Fac Ext Cet Arc Hub Fac Was Fac Res Arm Res Qua Total Allies 37 | . 1 . . . . 10 . . . . . . . 20 5 . . . 1 . . . . . Largest Group 12 | . 1 1 1 1 . 10 6 . . . . . . 12 11 7 6 . 1 . . . . . Highest-Rated Group 676 | . 10 10 10 10 . 173 96 . . . . . . 467 676 532 501 . 46 . . . . . Highest-Rated Ally 156 | . 10 10 10 10 . 29 16 . . . . . . 156 150 94 94 . 46 . . . . . Total Orders 2 | . . . . . . . . . . . . . . 2 . . . . . . . . . . STAY 1 | . . . . . . . . . . . . . . 1 . . . . . . . . . . FOLLOW 1 | . . . . . . . . . . . . . . 1 . . . . . . . . . . Ally Attacks 306 | . . . . . . 31 40 . . . . . . 72 79 38 40 . 6 . . . . . Total Damage 7676 | . . . . . . 443 509 . . . . . . 2017 1863 1275 1488 . 81 . . . . . Kills 44 | . . . . . . 4 4 . . . . . . 13 12 4 7 . . . . . . . Allies Corrupted 4 | . . . . . . 2 . . . . . . . . . . 2 . . . . . . . Allies Melted . | . . . . . . . . . . . . . . . . . . . . . . . . . Intel | -11 -10 -10 -10 -9 -8 -8 -7 -7 -7 -7 -6 -6 -5 -5 -5 -5 -5 -4 -4 -4 -3 -3 -2 -2 ------- Run | Scr Mat Min Exi Min Mat Sto Fac Low Low Zio Pro Fac Fac Ext Cet Arc Hub Fac Was Fac Res Arm Res Qua Robot Analysis Total . | . . . . . . . . . . . . . . . . . . . . . . . . . Derelict Logs Recovered 4 | . . 1 . . . . . 1 . 2 . . . . . . . . . . . . . . Drone Launches . | . . . . . . . . . . . . . . . . . . . . . . . . . Drone Recoveries . | . . . . . . . . . . . . . . . . . . . . . . . . . Exploration | -11 -10 -10 -10 -9 -8 -8 -7 -7 -7 -7 -6 -6 -5 -5 -5 -5 -5 -4 -4 -4 -3 -3 -2 -2 ------------- Run | Scr Mat Min Exi Min Mat Sto Fac Low Low Zio Pro Fac Fac Ext Cet Arc Hub Fac Was Fac Res Arm Res Qua Turns Passed 12987 | 56 656 218 410 242 1304 775 551 335 513 1296 670 183 790 1028 327 114 244 77 117 227 879 1634 200 141 Spaces Moved 7220 | 38 388 136 269 127 618 342 269 225 323 909 308 118 385 408 124 52 108 47 67 122 457 915 277 188 Core 146 | 5 . . . . . . . . . . . . . . . . . . . . . . 27 114 Treads 3097 | . . . . . 463 342 218 . . . . . 205 408 124 52 108 47 67 122 457 484 . . Legs 1108 | 33 388 136 269 127 155 . . . . . . . . . . . . . . . . . . . Wheels 2114 | . . . . . . . 51 225 323 909 308 118 180 . . . . . . . . . . . Hover 681 | . . . . . . . . . . . . . . . . . . . . . . 431 250 . Flight 74 | . . . . . . . . . . . . . . . . . . . . . . . . 74 Fastest Speed 37 | 50 120 150 150 180 150 180 130 140 140 140 140 140 140 160 160 160 160 160 160 160 160 48 48 37 Average Speed 142 | 110 133 150 150 180 169 180 170 140 140 140 140 140 161 175 160 160 160 160 160 171 170 106 49 48 Slowest Speed 240 | 120 150 150 150 180 185 180 180 140 140 140 140 140 240 180 180 160 160 160 180 180 180 180 150 150 Overloaded Moves . | . . . . . . . . . . . . . . . . . . . . . . . . . Propulsion Burnouts . | . . . . . . . . . . . . . . . . . . . . . . . . . Robots Hopped . | . . . . . . . . . . . . . . . . . . . . . . . . . Cave-ins Triggered 2 | . . . . . . . . . . . . . . . . . . . . . . 2 . . Exploration Rate (%) 35 | 4 63 22 65 22 31 49 9 45 50 84 51 4 13 57 55 73 23 1 72 2 15 48 12 23 Regions Visited 24 Branch Regions 14 Pre-discovered Areas 2 | . . . 1 . . . . . . 1 . . . . . . . . . . . . . . Known Exits Taken 4 | . . . 1 . 1 . . . . . . 1 1 . . . . . . . . . . . Unknown Exits Taken 18 | 1 1 1 . 1 . 1 1 1 1 1 1 . . 1 1 1 1 . . 1 1 1 1 . Scrap Searched 11 | . . 2 . 1 . . . . 1 4 3 . . . . . . . . . . . . . Spaces Dug 37 | . . . . . . 1 1 . . . . 1 9 14 . . 1 . . . 1 9 . . Terrain Destroyed 463 | . 12 . . 7 13 31 37 . 6 . 8 1 9 16 . 2 157 . . . 1 144 . 19 Melee 2 | . . . . . . . 1 . . . . . . . . . . . . . . 1 . . Projectile 44 | . . . . . . 5 . . . . . 1 9 16 . 2 1 . . . 1 9 . . AOE 417 | . 12 . . 7 13 26 36 . 6 . 8 . . . . . 156 . . . . 134 . 19 Terrain Rammed . | . . . . . . . . . . . . . . . . . . . . . . . . . Walls Destroyed . | . . . . . . . . . . . . . . . . . . . . . . . . . Machines Disabled . | . . . . . . . . . . . . . . . . . . . . . . . . . Actions | -11 -10 -10 -10 -9 -8 -8 -7 -7 -7 -7 -6 -6 -5 -5 -5 -5 -5 -4 -4 -4 -3 -3 -2 -2 --------- Run | Scr Mat Min Exi Min Mat Sto Fac Low Low Zio Pro Fac Fac Ext Cet Arc Hub Fac Was Fac Res Arm Res Qua Total 9194 | 49 476 146 276 139 817 457 329 233 360 936 531 132 507 685 239 71 170 50 76 141 513 1307 321 233 Wait 808 | . 25 4 1 11 81 39 14 3 5 . 200 . 50 40 91 9 50 . 5 10 13 154 3 . Move 7196 | 37 387 135 268 126 617 341 268 224 322 908 307 117 384 407 123 51 108 47 66 121 456 912 277 187 Hop . | . . . . . . . . . . . . . . . . . . . . . . . . . Pick Up 122 | 6 11 1 3 . 32 7 7 . 2 10 . 2 7 5 5 1 . . 1 3 7 9 3 . Fast Attach 103 | 6 2 . . . 6 9 2 . . 4 2 2 3 3 3 . . . 2 2 3 33 8 13 Attach 44 | . . . . . 6 . 2 . 3 1 . 2 5 . . . 1 3 1 4 3 10 1 2 Detach 30 | . . . . . 5 1 1 . 1 3 . 1 2 . . . . . 1 . 1 8 3 3 Swap 101 | . 8 1 2 1 11 8 8 . 6 1 4 3 9 15 1 1 6 . . . 3 11 2 . Drop 144 | . 13 2 2 . 20 19 9 . 2 9 3 2 8 13 8 2 1 . . 1 4 16 6 4 Fire 281 | . 30 3 . 1 26 28 15 6 13 . 7 3 22 22 8 7 4 . . . 23 46 . 17 Melee 171 | . . . . . 13 . 3 . 6 . 8 . 17 5 . . . . . . . 103 16 . Ram 3 | . . . . . . . . . . . . . . . . . . . . . . . 2 1 Kick . | . . . . . . . . . . . . . . . . . . . . . . . . . Crush 4 | . . . . . . 1 . . . . . . . . . . . . . . . 3 . . Escape Stasis 27 | . . . . . . 4 . . . . . . . 15 . . . . . . . 2 . 6 Rewire 160 | . . . . . . . . . . . . . . 160 . . . . . . . . . . Trap . | . . . . . . . . . . . . . . . . . . . . . . . . . Miscellaneous . | . . . . . . . . . . . . . . . . . . . . . . . . . Route ------- -11/Scrapyard -10/Materials (discovered 3 exits: [*Mat x2] / *Min) -10/Mines (discovered 2 exits: [*Mat] / *Exi) -10/Exiles (discovered 2 exits: *Min x2) -9/Mines -8/Materials -8/Storage -7/Factory -7/Lower Caves -7/Lower Caves -7/Zion -6/Proximity Caves -6/Factory -5/Factory (discovered 4 exits: *Upp x2 / *Ext x2) -5/Extension (discovered 2 exits: [*Fac] / *Cet) -5/Cetus -5/Archives -5/Hub_04(d) -4/Factory -4/Waste -4/Factory -3/Research -3/Armory -2/Research -2/Quarantine (discovered 1 exit: [*Acc]) History --------- Turn | Location | Event 7 | -11/Scrapyard | Discovered new exit (range 16) 57 | -11/Scrapyard | Entered Materials 287 | -10/Materials | Discovered new exit (range 10) 309 | -10/Materials | Build established: Mutant 413 | -10/Materials | Discovered new exit (range 9) 580 | -10/Materials | Discovered new exit (range 10) 713 | -10/Materials | Entered Mines 713 | -10/Mines | Accompanied by 1 ally 803 | -10/Mines | Discovered new exit (range 5) 819 | -10/Mines | Met a Derelict who couldn't figure out how to use a Trap Extractor 924 | -10/Mines | Deemed a non-threat by the Exiles lab entrance 924 | -10/Mines | Discovered new exit (range 5) 931 | -10/Mines | Entered Exiles 931 | -10/Exiles | Accompanied by 1 ally 932 | -10/Exiles | Identified exit to Mines 969 | -10/Exiles | Met 8R-AWN 993 | -10/Exiles | Met EX-HEX 1081 | -10/Exiles | Met EX-BIN 1099 | -10/Exiles | Aligned with FarCom system 1101 | -10/Exiles | Given EX-Vault access code 1138 | -10/Exiles | Opened EX-Vault 1149 | -10/Exiles | Found Longsword +1 1180 | -10/Exiles | Warned to stay clear of 0b10 Research branches 1224 | -10/Exiles | Met EX-DEC 1230 | -10/Exiles | Learned location of Zion (-7) 1341 | -10/Exiles | Left Exiles lab with Longsword +1 1341 | -10/Exiles | Entered Mines 1341 | -9/Mines | Accompanied by 1 ally 1401 | -9/Mines | Discovered new exit (range 11) 1583 | -9/Mines | Entered Materials 1583 | -8/Materials | Evolved 4 slots: Propulsion x2, Utility x2 2487 | -8/Materials | Identified exit to Storage 2568 | -8/Materials | Build established: Hauler-Mutant 2887 | -8/Materials | Entered Storage 3443 | -8/Storage | Assisted by bots powering up and referring to "LRC-V3" 3636 | -8/Storage | Discovered new exit (range 12) 3662 | -8/Storage | Entered Factory 3662 | -7/Factory | Accompanied by 6 allies 3662 | -7/Factory | Evolved 2 slots: Utility x2 3740 | -7/Factory | Build established: Commander-Mutant 3983 | -7/Factory | P-60 Hacker assimilated allied Trooper 3g 4123 | -7/Factory | Build established: Hauler-Mutant 4177 | -7/Factory | Discovered new exit (range 11) 4213 | -7/Factory | Entered Lower Caves 4440 | -7/Lower Caves | Learned Factory security intel 4484 | -7/Lower Caves | Discovered new exit (range 15) 4510 | -7/Lower Caves | Attracted the attention of an 0b10 checkpoint 4548 | -7/Lower Caves | Entered another Lower Caves area 4784 | -7/Lower Caves | Spotted B-75 Beast 4963 | -7/Lower Caves | Attracted the attention of an 0b10 checkpoint 4997 | -7/Lower Caves | Found Prototype Device 5045 | -7/Lower Caves | Discovered new exit (range 11) 5061 | -7/Lower Caves | Entered Zion 5145 | -7/Zion | Discovered new exit (range 8) 5189 | -7/Zion | Visited the Megawrench Repair Shop 5214 | -7/Zion | Megawrench repaired 10 parts 5244 | -7/Zion | System corruption cleaned by Quarantine Array 5605 | -7/Zion | Received a hallucinogenic algorithm 5640 | -7/Zion | Learned Factory terminal intel 6010 | -7/Zion | Rebuked by Imprinter 6163 | -7/Zion | Found Prototype Processor 6163 | -7/Zion | Identified Exp. Targeting Computer 6167 | -7/Zion | Found Prototype Processor 6167 | -7/Zion | Identified Exp. Core Analyzer 6170 | -7/Zion | Found Prototype Processor 6170 | -7/Zion | Identified Exp. Melee Analysis Suite 6179 | -7/Zion | Found Prototype Processor 6179 | -7/Zion | Identified Exp. Signal Interpreter 6196 | -7/Zion | Found Exp. Targeting Computer 6208 | -7/Zion | Found Prototype Hackware 6357 | -7/Zion | Entered Proximity Caves 6564 | -6/Proximity Caves | Spotted B-75 Beast 6776 | -6/Proximity Caves | Received a Behemoth hack from an annoying Tinkerer 6982 | -6/Proximity Caves | Discovered new exit (range 7) 7027 | -6/Proximity Caves | Entered Factory 7027 | -6/Factory | Evolved 2 slots: Utility x2 7029 | -6/Factory | Loaded intel: 20 terminal locations 7119 | -6/Factory | Discovered new exit (range 3) 7128 | -6/Factory | Identified exit to Factory 7210 | -6/Factory | Entered another Factory area 7210 | -5/Factory | Evolved 2 slots: Utility x2 7466 | -5/Factory | Identified exit to Upper Caves 7466 | -5/Factory | Identified exit to Extension 8000 | -5/Factory | Entered Extension 8113 | -5/Extension | Identified Exp. System Shield 8115 | -5/Extension | Rescued A7 8301 | -5/Extension | Build established: Hauler-Skirmisher 8393 | -5/Extension | Rescued a captive Derelict 8393 | -5/Extension | Rescued a captive Derelict 8549 | -5/Extension | Rescued a captive Derelict 8857 | -5/Extension | Rescued a captive Derelict 8969 | -5/Extension | Rescued a captive Derelict 9000 | -5/Extension | Discovered new exit (range 10) 9002 | -5/Extension | Discovered new exit (range 6) 9028 | -5/Extension | Entered Cetus 9028 | -5/Cetus | Accompanied by 11 allies (A7) 9033 | -5/Cetus | Acquired a Cetus Manufacturing Module code from A7 9054 | -5/Cetus | Spotted Cetus Guard 9057 | -5/Cetus | Spotted Cetus Guard 9058 | -5/Cetus | Spotted Cetus Guard 9063 | -5/Cetus | Spotted Cetus Guard 9063 | -5/Cetus | Allies destroyed Cetus Guard 9069 | -5/Cetus | Allies destroyed Cetus Guard 9072 | -5/Cetus | Allies destroyed Cetus Guard 9075 | -5/Cetus | Allies destroyed Cetus Guard 9185 | -5/Cetus | Started Cetus Manufacturing Module 9210 | -5/Cetus | Manufactured an Enhanced Grunt 9235 | -5/Cetus | Manufactured an Enhanced Grunt 9260 | -5/Cetus | Manufactured an Enhanced Grunt 9285 | -5/Cetus | Manufactured an Enhanced Grunt 9310 | -5/Cetus | Manufactured an Enhanced Grunt 9328 | -5/Cetus | Discovered new exit (range 16) 9355 | -5/Cetus | Entered Archives 9355 | -5/Archives | Accompanied by 8 allies (A7) 9421 | -5/Archives | Unable to access archive contents 9438 | -5/Archives | Discovered new exit (range 14) 9469 | -5/Archives | Entered Hub_04(d) 9469 | -5/Hub_04(d) | Accompanied by 6 allies 9523 | -5/Hub_04(d) | Discovered new exit (range 12) 9672 | -5/Hub_04(d) | Network Hub disabled 9672 | -5/Hub_04(d) | Spotted Lightning 9672 | -5/Hub_04(d) | Spotted Lightning 9672 | -5/Hub_04(d) | Spotted Lightning 9672 | -5/Hub_04(d) | Spotted Lightning 9677 | -5/Hub_04(d) | Spotted Lightning 9681 | -5/Hub_04(d) | Spotted Lightning 9681 | -5/Hub_04(d) | Spotted Lightning 9681 | -5/Hub_04(d) | Spotted Lightning 9681 | -5/Hub_04(d) | Spotted Lightning 9682 | -5/Hub_04(d) | Spotted Lightning 9682 | -5/Hub_04(d) | Spotted Lightning 9682 | -5/Hub_04(d) | Spotted Lightning 9690 | -5/Hub_04(d) | System corruption reached 10% 9713 | -5/Hub_04(d) | Entered Factory 9713 | -4/Factory | Evolved 2 slots: Power x1, Utility x1 9737 | -4/Factory | Lost 4 parts (1p2u1w) 9743 | -4/Factory | Discovered new exit (range 13) 9790 | -4/Factory | Sucked down chute 9790 | -4/Factory | Entered Waste 9791 | -4/Waste | Met a frightened Derelict 9805 | -4/Waste | EMP discharged 9838 | -4/Waste | Spotted C-40 Crusher 9842 | -4/Waste | Spotted C-40 Crusher 9842 | -4/Waste | Spotted C-40 Crusher 9843 | -4/Waste | Spotted C-40 Crusher 9845 | -4/Waste | Spotted C-40 Crusher 9847 | -4/Waste | Crushed by Compactor (1 part destroyed, 1 dropped) 9853 | -4/Waste | Spotted C-40 Crusher 9861 | -4/Waste | Crushed by Compactor (0 parts destroyed, 1 dropped) 9871 | -4/Waste | Crushed by Compactor (0 parts destroyed, 1 dropped) 9877 | -4/Waste | Crushed by Compactor (0 parts destroyed, 1 dropped) 9886 | -4/Waste | Discovered new exit (range 10) 9905 | -4/Waste | EMP discharged 9905 | -4/Waste | System corruption reached 10% 9907 | -4/Waste | Entered Factory 9935 | -4/Factory | Build established: Hauler-Mutant 10108 | -4/Factory | Discovered new exit (range 12) 10134 | -4/Factory | Entered Research 10134 | -3/Research | Evolved 2 slots: Utility x2 10311 | -3/Research | Build established: Hacker-Skirmisher 10405 | -3/Research | Spotted B-86 Titan 10897 | -3/Research | Found Gamma Bomb Array 10902 | -3/Research | Build established: Hacker-Mutant 10913 | -3/Research | Found Enh. Force Lance 11006 | -3/Research | Discovered new exit (range 4) 11013 | -3/Research | Entered Armory 11614 | -3/Armory | System corruption reached 10% 11681 | -3/Armory | Destroyed 7 combat bots 11689 | -3/Armory | Lost 5 parts (1n4u) 11763 | -3/Armory | First assault squad dispatched 11798 | -3/Armory | Crushed by falling debris 11799 | -3/Armory | Crushed by falling debris 11800 | -3/Armory | System corruption reached 30% 11830 | -3/Armory | Lost 4 parts (4u) 11939 | -3/Armory | Lost 10 parts (2p1n4u3w) 12212 | -3/Armory | Core integrity fell below 50% 12408 | -3/Armory | Lost 5 parts (1p2n2u) 12464 | -3/Armory | Build established: Scavenger-Mutant 12465 | -3/Armory | Found Fusion Bomb Launcher 12489 | -3/Armory | Found Prototype Processor 12489 | -3/Armory | Identified Exp. Target Analyzer 12619 | -3/Armory | Core integrity fell below 20% 12645 | -3/Armory | Discovered new exit (range 4) 12647 | -3/Armory | Entered Research 12647 | -2/Research | Evolved 2 slots: Utility x2 12842 | -2/Research | Discovered new exit (range 7) 12847 | -2/Research | Entered Quarantine 12848 | -2/Quarantine | Maximum security lockdown engaged 12870 | -2/Quarantine | Lost 12 parts (1p4n6u1w) 12925 | -2/Quarantine | Found Quantum Capacitor 12932 | -2/Quarantine | Found Prototype Device 12932 | -2/Quarantine | Identified Exp. ECM Suite 12954 | -2/Quarantine | Scanned by Researcher 12955 | -2/Quarantine | Found Alien Artifact 12955 | -2/Quarantine | Identified Phase Redirector 12978 | -2/Quarantine | Core integrity fell below 50% 12980 | -2/Quarantine | System corruption reached 10% 12986 | -2/Quarantine | Core integrity fell below 20% 12987 | -2/Quarantine | Discovered new exit (range 16) 12988 | -2/Quarantine | Destroyed by Y-72 Warden with Railgun Last Messages --------------- 12981_ Dropped Quantum Capacitor. 12982_ Slug penetrates Suspension Chamber. 12983_ Field Propulsion Array destroyed. 12983_ Hacking Suite destroyed. 12984_ Slug penetrates Suspension Chamber. 12984_ Slug penetrates M-36 Artificer. 12984_ System Shield blown off. 12984_ Enh. Force Lance blown off. 12984_ Exp. Melee Analysis Suite blown off. 12984_ Adv. Signal Interpreter blown off. 12985_ Slug penetrates Suspension Chamber. 12985_ Slammed into G-73 Enforcer. 12986_ Adv. Target Analyzer destroyed. 12986_ System Shield destroyed. 12987_ Slug penetrates Wall. 12987_ Acquired 83 matter. 12987_ EXIT=FOUND 12988_ Penetrated by Slug. [Achievement: Just Browsing] [Achievement: Achiever] Map ----- +----------------------------------------------------+ | ######### # """ """ #?????????????????????????? | | ????????# # """ """ #?????????????????????????? | | ????????# # #?????????????????????????? | | ????????# # !#?????????????????????????? | | ????????# #! #?????????????????????????? | | ????????# # * #?????????????????????????? | | ????????# #######+###?????????????????????????? | | ????????# #?????# #???????????????????????????? | | ????????# #?????# #???????????????????????????? | | ????????# #?????# ####????????????????????????? | | ????????# ??????# #T"#??????????????#?????????? | | ????????# ???#### # "############## #?????????? | | ?????????? ???# +?????????? | | ????????????????# #?????????? | | ????????????????# """ #?????????? | | ??????????? """ +?????????? | | ????????? """ #######?????????? | | ??????? """ g " w# #?????????????? | | ???????? """ g "%"= #?????????????? | | ???????? ### """ ###gb #?????????????? | | ???????? ??# g# g ##????????????? | | ????????####???# """ g #be%gg!g* #????????????? | | ???????????????# """ gbgg bg*%%= #????????????? | | ???????????????# """ g #g"b[ *! #???????????? | | ???????????????# #h" "" #???????????? | | ???????????????# """ @gchg #???????????? | | ???????????????# """ %%# i ##???????????? | | ????????????????? """ %# #????????????? | | ????????????????? # #????????????? | | ???????????????? ###########????????????? | | ??????????????? #??????????????????????? | | ?????????????? #??????????????????????? | | ?????????????? #??????????????????????? | | ?????????????#####+### #??????????????????????? | | ?????????????????????# ???????????????????????? | | ?????????????????????# ???????????????????????? | | ?????????????????????# ???????????????????????? | | ?????????????????????# ???????????????????????? | | ?????????????????????# ???????????????????????? | | ?????????????????????# Y ???????????????????????? | | ???????????????????????Y